Workbook

Sheet acc
A1: شجرة الحسابات | H1: =SUBTOTAL(9,H3:H10000) ->  | P1: =COLUMN() -> 16 | R1: اول المدة | T1: الحركات | V1: الرصيد
A2: م | B2: لا | C2: اسم الحساب | E2: البطاقة الضريبية | F2: التليفون | G2: المسئول | H2: الرصيد | I2: التصنيف | J2: كود حساب اخر | K2: الرصيد بالعملة | L2: صافي الرصيد | M2: التوجيه | N2: حجم الائتمان | O2: فترة الائتمان | P2: group | Q2: التعامل | R2: مدين | S2: دائن | T2: مدين | U2: دائن | V2: مدين | W2: دائن
A3: 1 | B3: 1 | C3: الأصول الثابتة | I3: أصول ثابتة
A4: 2 | B4: 2
A5: 3 | B5: 3
A6: 4 | B6: 4
A7: 5 | B7: 5
A8: 6 | B8: 6
A9: 7 | B9: 7
A10: 8 | B10: 8
A11: 9 | B11: 9 | I11: صندوق وبنوك
A12: 10 | B12: 10 | C12: الصندوق والبنوك
A13: 11 | B13: 11 | C13: الصندوق
A14: 12 | B14: 12 | C14: حساب بنك qnb | I14: البنك
A15: 13 | B15: 13 | C15: خزنه الحاج هانى | I15: جاري هاني
A16: 14 | B16: 14
A17: 15 | B17: 15
A18: 16 | B18: 16
A19: 17 | B19: 17
A20: 18 | B20: 18
A21: 19 | B21: 19
A22: 20 | B22: 20 | C22: العملاء
A23: 21 | B23: 21 | C23: اشرف عبد السلام | I23: عميل
A24: 22 | B24: 22 | C24: شركة العربي | I24: عميل
A25: 23 | B25: 23 | C25: حاتم الإسماعيلية | I25: عميل
A26: 24 | B26: 24 | C26: الجودة للطلاء | I26: عميل
A27: 25 | B27: 25 | C27: عماد نيو باك | I27: عميل
A28: 26 | B28: 26 | C28: شركة السلام | I28: عميل
A29: 27 | B29: 27 | C29: اشرف هلال | I29: عميل
A30: 28 | B30: 28 | C30: فارس الإسكندرية | I30: عميل
A31: 29 | B31: 29 | C31: الفا لايت | I31: عميل
A32: 30 | B32: 30 | C32: جمصة | I32: عميل
A33: 31 | B33: 31 | C33: شركة كارمن | I33: عميل
A34: 32 | B34: 32 | C34: محمد المحلة | I34: عميل
A35: 33 | B35: 33 | C35: علي فداوي | I35: عميل
A36: 34 | B36: 34 | C36: الاء | I36: عميل
A37: 35 | B37: 35 | C37: شركة الشفاء | I37: عميل
A38: 36 | B38: 36 | C38: سيموندس | I38: عميل
A39: 37 | B39: 37 | C39: محمد دسوقي | I39: عميل
A40: 38 | B40: 38 | C40: رضا المنصورة | I40: عميل
A41: 39 | B41: 39 | C41: وائل الإسماعيلية | I41: عميل
A42: 40 | B42: 40 | C42: عبد العليم | I42: عميل
A43: 41 | B43: 41 | C43: ماجد عسل | I43: عميل
A44: 42 | B44: 42 | C44: حياة اسكندرية | I44: عميل
A45: 43 | B45: 43 | C45: بيشوي | I45: عميل
A46: 44 | B46: 44 | C46: هليل | I46: عميل
A47: 45 | B47: 45 | C47: عفت المنصورة | I47: عميل
A48: 46 | B48: 46 | C48: بدر الخوانكي | I48: عميل
A49: 47 | B49: 47 | C49: علي يونس | I49: عميل
A50: 48 | B50: 48 | C50: علاء البعج | I50: عميل
A51: 49 | B51: 49 | C51: محمد جمال بدر | I51: عميل
A52: 50 | B52: 50 | C52: إسماعيل ماسترباك | I52: عميل
A53: 51 | B53: 51 | C53: سعد أبو النمرس | I53: عميل
A54: 52 | B54: 52 | C54: رامون | I54: عميل
A55: 53 | B55: 53 | C55: أولاد مخلوف | I55: عميل
A56: 54 | B56: 54 | C56: محمد السوري | I56: عميل
A57: 55 | B57: 55 | C57: وليد شعبان | I57: عميل
A58: 56 | B58: 56 | C58: محمد عادل | I58: عميل
A59: 57 | B59: 57 | C59: خالد يوسف | I59: عميل
A60: 58 | B60: 58 | C60: سعيد هاي بلاست | I60: عميل
A61: 59 | B61: 59 | C61: امير بشرى | I61: عميل
A62: 60 | B62: 60 | C62: اشرف التجمع | I62: عميل
A63: 61 | B63: 61 | C63: محمد يونس | I63: عميل
A64: 62 | B64: 62 | C64: المستقبل | I64: عميل
A65: 63 | B65: 63 | C65: احمد محسن | I65: عميل
A66: 64 | B66: 64 | C66: وليد لطفي | I66: عميل
A67: 65 | B67: 65 | C67: إبراهيم سيلوتيب | I67: عميل
A68: 66 | B68: 66 | C68: هالة | I68: عميل
A69: 67 | B69: 67 | C69: محمد سعد | I69: عميل
A70: 68 | B70: 68 | C70: عادل فداوي | I70: عميل
A71: 69 | B71: 69 | C71: محمود فلتر | I71: عميل
A72: 70 | B72: 70 | C72: وواتر اكسبريس | I72: عميل
A73: 71 | B73: 71 | C73: محمود القناطر | I73: عميل
A74: 72 | B74: 72 | C74: رضا زغلول | I74: عميل
A75: 73 | B75: 73 | C75: فطين | I75: عميل
A76: 74 | B76: 74 | C76: عبد العزيز دحلب | I76: عميل
A77: 75 | B77: 75 | C77: احمد شعبان | I77: عميل
A78: 76 | B78: 76 | C78: خالد سيلوتيب | I78: عميل
A79: 77 | B79: 77 | C79: عادل أبو عبية | I79: عميل
A80: 78 | B80: 78 | C80: محمد الخوانكي | I80: عميل
A81: 79 | B81: 79 | C81: سعيد تبارك | I81: عميل
A82: 80 | B82: 80 | C82: محمود الخوانكي | I82: عميل
A83: 81 | B83: 81 | C83: رضا جورج | I83: عميل
A84: 82 | B84: 82 | C84: فارما بدر | I84: عميل
A85: 83 | B85: 83 | C85: ساندرا | I85: عميل
A86: 84 | B86: 84 | C86: علام | I86: عميل
A87: 85 | B87: 85 | C87: باسم سعيد | I87: عميل
A88: 86 | B88: 86 | C88: علاء رشاد | I88: عميل
A89: 87 | B89: 87 | C89: جسن بسوس | I89: عميل
A90: 88 | B90: 88 | C90: حسام الفجالة | I90: عميل
A91: 89 | B91: 89 | C91: حسن الشريف | I91: عميل
A92: 90 | B92: 90 | C92: عمرو سيلوتيب | I92: عميل
A93: 91 | B93: 91 | C93: خالد فايد | I93: عميل
A94: 92 | B94: 92 | C94: هاني الفهد | I94: عميل
A95: 93 | B95: 93 | C95: محمود كمال | I95: عميل
A96: 94 | B96: 94 | C96: عماد المعادي | I96: عميل
A97: 95 | B97: 95 | C97: أبو العلا | I97: عميل
A98: 96 | B98: 96 | C98: عصام تبارك | I98: عميل
A99: 97 | B99: 97 | C99: عبد المعطي سيلوتيب | I99: عميل
A100: 98 | B100: 98 | C100: عبد العزيز المصرية | I100: عميل
A101: 99 | B101: 99 | C101: الاتحاد العاشر | I101: عميل
A102: 100 | B102: 100 | C102: شركة عمان | I102: عميل
A103: 101 | B103: 101 | C103: حراز | I103: عميل
A104: 102 | B104: 102 | C104: جيتكس | I104: عميل
A105: 103 | B105: 103 | C105: اشرف الهواري | I105: عميل
A106: 104 | B106: 104 | C106: ايمن منصورة | I106: عميل
A107: 105 | B107: 105 | C107: شريف محمود | I107: عميل
A108: 106 | B108: 106 | C108: العربية السعودية | I108: عميل
A109: 107 | B109: 107 | C109: اكرم / العالميه | I109: عميل
A110: 108 | B110: 108 | C110: شركه الصفا | I110: عميل
A111: 109 | B111: 109 | C111: عرب الخلوه | I111: عميل
A112: 110 | B112: 110 | C112: شركه العاصم | I112: عميل
A113: 111 | B113: 111 | C113: حرير | I113: عميل
A114: 112 | B114: 112 | C114: ماستر باك | I114: عميل
A115: 113 | B115: 113 | C115: شركة تستي مور | I115: عميل
A116: 114 | B116: 114 | C116: وليد البحيره | I116: عميل
A117: 115 | B117: 115 | C117: عرب الخلوه جديد | I117: عميل
A118: 116 | B118: 116 | C118: شركه لورد | I118: عميل
A119: 117 | B119: 117 | C119: النقدي | I119: عميل
A120: 118 | B120: 118 | C120: الشركه المصريه | I120: عميل
A121: 119 | B121: 119 | C121: وائل حماد | I121: عميل
A122: 120 | B122: 120 | C122: محمودالهلالي | I122: عميل
A123: 121 | B123: 121 | C123: محمد الكردي | I123: عميل
A124: 122 | B124: 122 | C124: المتحدة الزقازيق | I124: عميل
A125: 123 | B125: 123 | C125: عملاء نقدي | I125: عميل
A126: 124 | B126: 124 | C126: اكوا تراكس | I126: عميل
A127: 125 | B127: 125 | C127: الربيع | I127: عميل
A128: 126 | B128: 126 | C128: الهنا باك | I128: عميل
A129: 127 | B129: 127 | C129: وائل الاخوه للكرتون | I129: عميل
A130: 128 | B130: 128 | C130: وواتر اكسبريس م/منصور | I130: عميل
A131: 129 | B131: 129 | C131: هولى ستار ا/ مينا | I131: عميل
A132: 130 | B132: 130 | C132: اكرم | I132: عميل
A133: 131 | B133: 131 | C133: فرج القاهره | I133: عميل
A134: 132 | B134: 132 | C134: حلمى | I134: عميل
A135: 133 | B135: 133 | C135: وائل بولى تريد | I135: عميل
A136: 134 | B136: 134 | C136: عبد الرؤوف دي ماس | I136: عميل
A137: 135 | B137: 135 | C137: شركه جميله | I137: عميل
A138: 136 | B138: 136 | C138: هيثم كور | I138: موردين
A139: 137 | B139: 137 | C139: احمد درويش | I139: عميل
A140: 138 | B140: 138 | C140: جى ام فورز | I140: عميل
A141: 139 | B141: 139 | C141: محمود البنا | I141: عميل
A142: 140 | B142: 140 | C142: يونيفارما | I142: عميل
A143: 141 | B143: 141 | C143: ابراهيم زغلول | I143: عميل
A144: 142 | B144: 142 | C144: محمود سعد | I144: عميل
A145: 143 | B145: 143 | C145: فداوى | I145: عميل
A146: 144 | B146: 144 | C146: محمد جبل الاصفر | I146: عميل
A147: 145 | B147: 145 | C147: شركة الوليد اكتوبر | I147: عميل
A148: 146 | B148: 146 | C148: سناء جمال غزال | I148: عميل
A149: 147 | B149: 147 | C149: صبحى عواد | I149: عميل
A150: 148 | B150: 148 | C150: محمد عبد الفتاح | I150: عميل
A151: 149 | B151: 149 | C151: محمد الشاذلى شراء استرتش | I151: عميل
A152: 150 | B152: 150 | C152: ايهاب جونسون | I152: عميل
A153: 151 | B153: 151 | C153: المدينه النوره | I153: عميل
A154: 152 | B154: 152 | C154: احمد عيسى | I154: عميل
A155: 153 | B155: 153 | C155: خالد تبع فهيم | I155: عميل
A156: 154 | B156: 154 | C156: شركة الندى | I156: عميل
A157: 155 | B157: 155 | C157: محمود مجدى | I157: عميل
A158: 156 | B158: 156 | I158: عميل
A159: 157 | B159: 157 | C159: شركة فريش | I159: عميل
A160: 158 | B160: 158 | C160: عبد الحكم | I160: عميل
A161: 159 | B161: 159 | C161: احمد صابر هالك | I161: عميل
A162: 160 | B162: 160 | C162: شركه السويدى | I162: عميل
A163: 161 | B163: 161 | C163: طارق المحله | I163: عميل
A164: 162 | B164: 162 | C164: محمود نصار قليوب | I164: عميل
A165: 163 | B165: 163 | C165: السيد صابر صقر | I165: عميل
A166: 164 | B166: 164 | C166: رفيق | I166: عميل
A167: 165 | B167: 165 | C167: سامح الصعيدى | I167: عميل
A168: 166 | B168: 166 | C168: كيرو باك مصر | I168: عميل
A169: 167 | B169: 167 | C169: ياسر شركة العطور | I169: عميل
A170: 168 | B170: 168 | C170: الاسلاميه استرتش | I170: عميل
A171: 169 | B171: 169 | C171: ابو طالب | I171: عميل
A172: 170 | B172: 170 | C172: شركة كلاس | I172: عميل
A173: 171 | B173: 171 | C173: احمد الحوت | I173: عميل
A174: 172 | B174: 172 | C174: الفا مصر للبويات | I174: عميل
A175: 173 | B175: 173 | C175: اورينت تبع علاء رشاد | I175: عميل
A176: 174 | B176: 174 | C176: بشوى الهرم | I176: عميل
A177: 175 | B177: 175 | C177: محمود العتيق | I177: عميل
A178: 176 | B178: 176 | C178: جمال عسكر اسكندريه | I178: عميل
A179: 177 | B179: 177 | C179: مسلم سيلوتيب | I179: عميل
A180: 178 | B180: 178 | C180: كايرو ثرى | I180: عميل
A181: 179 | B181: 179 | C181: يحى عامر | I181: عميل
A182: 180 | B182: 180 | C182: كريم هالك | I182: عميل
A183: 181 | B183: 181 | C183: بشمهندس محمد حمام | I183: عميل
A184: 182 | B184: 182 | C184: شركة اليسر | I184: عميل
A185: 183 | B185: 183 | C185: معاذ | I185: عميل
A186: 184 | B186: 184 | C186: احمد خالد | I186: عميل
A187: 185 | B187: 185 | C187: الاء | I187: عميل
A188: 186 | B188: 186 | C188: شركة اوليفيا | I188: عميل
A189: 187 | B189: 187 | C189: صبرى سلوتيب | I189: عميل
A190: 188 | B190: 188 | C190: اجرو ايجيبت | I190: عميل
A191: 189 | B191: 189 | C191: شركة بابل | I191: عميل
A192: 190 | B192: 190 | C192: شفيق البنا | I192: عميل
A193: 191 | B193: 191 | C193: رافت فؤاد الزقازيق | I193: عميل
A194: 192 | B194: 192 | C194: احمد الباز | I194: عميل
A195: 193 | B195: 193 | C195: عماد عصام استرتش | I195: عميل
A196: 194 | B196: 194 | C196: زين الصعيد | I196: عميل
A197: 195 | B197: 195 | C197: كتالوجات سوريا | I197: عميل
A198: 196 | B198: 196 | C198: احمد زغلول | I198: عميل
A199: 197 | B199: 197 | C199: صبرى ابوطالب الفارس | I199: عميل
A200: 198 | B200: 198 | C200: سعيد فرج | I200: عميل
... 223 more rows

Sheet items
A1: قائمة الاصناف المخزنية
A2: م | B2: كود الصنف | C2: اسم الصنف | D2: كود المورد | E2: المورد | F2: م س شراء كيلو | G2: س بيع كيلو | H2: المواصفات | I2: المخزن | J2: الرصيد | K2: بالانتاج | L2: قائمة الاسعار02/15
A3: 1 | B3: ak-tv-0001 | C3: شاشة 32 بوصة | F3: 50
A4: =A3+1 -> 2 | B4: ak-tv-0002 | C4: شاشة 43 بوصة
A5: =A4+1 -> 3 | B5: ak-wa-0001 | C5: غسالة 10 كيلو
A6: 4 | B6: ak-rf-0001 | C6: ثلاجة مينى بار 4.5
A7: 5 | B7: ak-gc-0001 | C7: بوتجاز 60*80 (107)
A8: 6 | B8: ak-gc-0002 | C8: بوتجاز 60*80 نحاس (109)
A9: 7 | B9: ak-gc-0003 | C9: بوتجاز 60*80 بالمروحة (110)
A10: 8 | B10: ak-gc-0004 | C10: بوتجاز 60*90 نحاس (114)
A11: 9 | B11: ak-gc-0005 | C11: بوتجاز 60*90 بالمروحة (115)
A12: 10 | B12: ak-mw-0001 | C12: ميكروويف 20 لتر
A13: 11 | B13: ak-mw-0002 | C13: ميكروويف 25 لتر
A14: 12 | B14: ak-mw-0003 | C14: ميكروويف 30 لتر | F14: 120
A15: 13 | B15: ak-af-0001 | C15: قلاية 5.5 لتر عادة 100
A16: 14 | B16: ak-af-0002 | C16: قلاية 5.5 لتر ديجيتال 100
A17: 15 | B17: ak-af-0003 | C17: قلاية 5.5 لتر عادة 200
A18: 16 | B18: ak-af-0004 | C18: قلاية 5.5 لتر ديجيتال 200
A19: 17 | B19: ak-ir-0001 | C19: مكواة تيفال
A20: 18 | B20: ak-ir-0002 | C20: مكواة سيراميك
A21: 19 | B21: ak-yg-0001 | C21: ماكينة زبادى عادة
A22: 20 | B22: ak-kt-0001 | C22: غلاية 1505 بلاستيك
A23: 21 | B23: ak-kt-0002 | C23: غلاية 1100 زجاج
A24: 22 | B24: ak-ov-0001 | C24: فرن 45 لتر
A25: 23 | B25: ak-ov-0002 | C25: فرن 55 لتر
A26: 24 | B26: ak-ov-0003 | C26: فرن 70 لتر
A27: 25 | B27: ak-wd-0001 | C27: مبرد 3 حنفية حافظة
A28: 26 | B28: ak-wd-0002 | C28: مبرد 3 حنفية ثلاجة
A29: 27 | B29: ak-wd-0003 | C29: مبرد 2 حنفية زجاج
A30: 28 | B30: ak-ov-0004 | C30: فرن 40 لتر واحد زرار
A31: 28 | B31: ak-bl-0001 | C31: كيتشن تركي
A32: 29 | B32: ak-bl-0002 | C32: خلاط 400
A33: 29 | B33: ak-bl-0003 | C33: مضرب عاده 400
A34: 30 | B34: ak-co-0001 | C34: بلاطة 1 عين تركي
A35: 30 | B35: ak-co-0002 | C35: بلاطة 2 عين تركي
A36: 31 | B36: ak-he-0001 | C36: دفاية 4 شمعة 2970
A37: 31 | B37: ak-he-0002 | C37: دفاية 3 شمعة 2820
A38: 32 | B38: ak-he-0003 | C38: دفاية 4 شمعة عادة
A39: 32 | B39: ak-he-0004 | C39: دفاية 4 شمعة ريموت
A40: 33 | B40: ak-he-0005 | C40: دفاية 4 شمعة وسط 2050
A41: 33 | B41: ak-vc-0001 | C41: مكنسة بطة 2000 وات
A42: 34 | B42: ak-vc-0002 | C42: مكنسة برميل تركي
A43: 34 | B43: ak-bq-0001 | C43: شواية
A44: 35 | B44: ak-ex-0001 | C44: شفاط 30سم شبكة
A45: 35 | B45: ak-gc-0006 | C45: مسطح 3 عين استانلس
A46: 36 | B46: ak-ch-0001 | C46: كويكي 2 سكينة 500
A47: 36 | B47: ak-ch-0002 | C47: كبة 1 حوض 2 سكينة 100
A48: 37 | B48: ak-ch-0003 | C48: كبة 2 حوض 2 سكينة 150
A49: 37 | B49: ak-cf-0001 | C49: مروحة سقف 56" بوصة
A50: 38 | B50: ak-fa-0001 | C50: مروحة حائط 18 بوصة عادة
A51: 38 | B51: ak-fa-0002 | C51: مروحة حائط 18 بوصة ريموت
A52: 39 | B52: ak-fa-0003 | C52: مروحة عمود 18 بوصة عادة
A53: 39 | B53: ak-fa-0004 | C53: مروحة عمود 18 بوصة ريموت
A54: 40 | B54: ak-fa-0005 | C54: مروحة حائط 20 بوصة عادة
A55: 40 | B55: ak-fa-0006 | C55: مروحة عمود 20 بوصة عادة
A56: 41 | B56: ak-fa-0007 | C56: مروحة حائط 18 عادة موزة
A57: 41 | B57: ak-fa-0008 | C57: مروحة عمود 18 عادة موزة
A58: 42 | B58: ak-fa-0009 | C58: مروحة كاريوكا 18 بوصة
A59: 42 | B59: ak-kl-0001 | C59: صاعق ناموس بلاستيك 60 سم
A60: 43 | B60: ak-cl-0001 | C60: كولمن 20 لتر
A61: 43 | B61: ak-ac-0001 | C61: تكييف صحراوي 75 لتر

Sheet itemout
A1: 0 | B1: الصرف | I1: اسعار قائمة:13-1-2024 | J1: 0 | N1: قطعي بدون خصم
A2: نوع الحركة | B2: صرف منتج تام | D2: الاذن اليدوي | J2: 0 | N2: اجل بخصم 5%
A3: اذن رقم | B3: 231434 | D3: التعامل | J3: 0 | N3: نقدي بخصم 7%
A4: التاريخ | B4: =TODAY() -> 2024-01-22 | D4: نوع التعامل | E4: قطعي بدون خصم | J4: 0 | N4: ض اجل بخصم 5%
A5: كود العميل | B5: 10 | H5: =SUM(H8:H8) -> 14162 | J5: 0 | N5: ض نقدي بخصم 7%
A6: اسم العميل | B6: =IFERROR(VLOOKUP(B5,acc!B:C,2,FALSE),"") -> الصندوق والبنوك | E6: المندوب | J6: 1 | N6: K.A
A7: م | B7: كود الصنف | C7: اسم الصنف | D7: مواصفات | E7: الوحدة | F7: الكمية | G7: السعر | H7: القيمة | J7: 2
A8: 1 | B8: ak-tv-0002 | C8: شاشة 43 بوصة | F8: 2 | G8: 7081 | H8: 14162 | J8: 3
A9: 2 | B9: ak-wa-0001 | C9: غسالة 10 كيلو | F9: 2 | G9: 3686 | H9: 7372 | J9: 4
A10: 3 | B10: ak-rf-0001 | C10: ثلاجة مينى بار 4.5 | F10: 3 | G10: 5917 | H10: 17751 | J10: 5
A11: 4 | B11: ak-gc-0003 | C11: بوتجاز 60*80 بالمروحة (110) | F11: 4 | G11: 5529 | H11: 22116 | J11: 6
J12: 7
J13: 8
J14: 9
J15: 10
J16: 11
J17: 12
J18: 13
J19: 14
J20: 15
J21: 16
J22: 17
J23: 18
J24: 19
J25: 20
J26: 21
J27: 22
J28: 23
J29: 24
J30: 25
J31: 26
J32: 27
G33: الصافي قبل ض | H33: =SUM(H8:H32) -> 61401 | J33: 28
G34: ض قيمة مضافة | H34: =IFERROR(IF(E$3<>"",H$33*0.14,0),0) -> 0 | J34: 29
G35: ض الخصم | H35: =IFERROR(IF(E$3<>"",H$33*0.01,0),0) -> 0 | J35: 30
G36: الصافي | H36: =H33+H34-H35 -> 61401 | J36: 31
J37: 32

Sheet 10-1-2024
A1: price list : 10-1-2024 | G1: =TODAY() -> 2024-01-22
I3: قطعي بدون خصم | J3: اجل بخصم 5% | L3: نقدي بخصم 7% | N3: ض اجل بخصم 5% | P3: ض نقدي بخصم 7% | R3: K.A
A4: factory | B4: supp | C4: group | D4: item code | E4: items | F4: items | G4: model | H4: base price | I4: قطعي بدون خصم | J4: سعر البيع | K4: الفاتورة | L4: سعر البيع | M4: الفاتورة | N4: سعر البيع | O4: الفاتورة بدون ض | P4: سعر البيع | Q4: الفاتورة بدون ض | R4: سعر البيع | S4: الفاتورة بدون ض
A5: AKAI Exp | B5: china | C5: t.v | D5: ak-tv-0001 | E5: t.v 32" | F5: شاشة 32 بوصة | H5: 10 | I5: =H5*0.97 -> 9.7 | J5: =H5*1.14 -> 11.4 | K5: =H5*1.09 -> 10.9 | L5: =H5*1.14 -> 11.4 | M5: H6*1.07 | N5: =I5*1.07 -> 10.379 | O5: =I5*(1+0.05+0.09+0.1) -> 12.028 | P5: =I5*(1+0.05) -> 10.185 | Q5: =I5*(1+0.05+0.09+0.1) -> 12.028 | R5: =I5*(1+0.03) -> 9.991 | S5: =I5*(1+0.05+0.14+0.1) -> 12.513 | T5: =I5*(1+0.03+0.05) -> 10.476
A6: AKAI Exp | B6: china | C6: t.v | D6: ak-tv-0002 | E6: t.v 43" | F6: شاشة 43 بوصة | H6: 7300 | I6: 7081 | J6: 8322 | K6: 7957 | L6: 8322 | M6: H6*1.07 | N6: 7576.67 | O6: 8780.44 | P6: 7435.05 | Q6: 8780.44 | R6: 7293.43 | S6: 9134.49 | T6: 7647.48
A7: B.ONE | B7: china | C7: washing | D7: ak-wa-0001 | E7: washing machin 10 kg | F7: غسالة 10 كيلو | H7: 3800 | I7: 3686 | J7: 4332 | K7: 4142 | L7: 4332 | M7: H6*1.07 | N7: 3944.02 | O7: 4570.64 | P7: 3870.3 | Q7: 4570.64 | R7: 3796.58 | S7: 4754.94 | T7: 3980.88
A8: AKAI Exp | B8: china | C8: Refrigerator | D8: ak-rf-0001 | E8: Refrigerator 4.5 | F8: ثلاجة مينى بار 4.5 | H8: 6100 | I8: 5917 | J8: 6954 | K8: 6649 | L8: 6954 | M8: H6*1.07 | N8: 6331.19 | O8: 7337.08 | P8: 6212.85 | Q8: 7337.08 | R8: 6094.51 | S8: 7632.93 | T8: 6390.36
A9: AKAI Exp | B9: china | C9: gas cooker | D9: ak-gc-0001 | E9: gas cooker 60*80 (107) | F9: بوتجاز 60*80 (107) | H9: 5300 | I9: 5141 | J9: 6042 | K9: 5777 | L9: 6042 | M9: H6*1.07 | N9: 5500.87 | O9: 6374.84 | P9: 5398.05 | Q9: 6374.84 | R9: 5295.23 | S9: 6631.89 | T9: 5552.28
A10: AKAI Exp | B10: china | C10: gas cooker | D10: ak-gc-0002 | E10: gas cooker 60*80 co (109) | F10: بوتجاز 60*80 نحاس (109) | H10: 5500 | I10: 5335 | J10: 6270 | K10: 5995 | L10: 6270 | M10: H6*1.07 | N10: 5708.45 | O10: 6615.4 | P10: 5601.75 | Q10: 6615.4 | R10: 5495.05 | S10: 6882.15 | T10: 5761.8
A11: AKAI Exp | B11: china | C11: gas cooker | D11: ak-gc-0003 | E11: gas cooker 60*80 & fan (110) | F11: بوتجاز 60*80 بالمروحة (110) | H11: 5700 | I11: 5529 | J11: 6498 | K11: 6213 | L11: 6498 | M11: H6*1.07 | N11: 5916.03 | O11: 6855.96 | P11: 5805.45 | Q11: 6855.96 | R11: 5694.87 | S11: 7132.41 | T11: 5971.32
A12: AKAI Exp | B12: china | C12: gas cooker | D12: ak-gc-0004 | E12: gas cooker 60*80 co (114) | F12: بوتجاز 60*90 نحاس (114) | H12: 6250 | I12: 6062.5 | J12: 7125 | K12: 6812.5 | L12: 7125 | M12: H6*1.07 | N12: 6486.875 | O12: 7517.5 | P12: 6365.625 | Q12: 7517.5 | R12: 6244.375 | S12: 7820.625 | T12: 6547.5
A13: AKAI Exp | B13: china | C13: gas cooker | D13: ak-gc-0005 | E13: gas cooker 60*80 & fan (115) | F13: بوتجاز 60*90 بالمروحة (115) | H13: 6350 | I13: 6159.5 | J13: 7239 | K13: 6921.5 | L13: 7239 | M13: H6*1.07 | N13: 6590.665 | O13: 7637.78 | P13: 6467.475 | Q13: 7637.78 | R13: 6344.285 | S13: 7945.755 | T13: 6652.26
A14: Akai ind | B14: china | C14: micro wave | D14: ak-mw-0001 | E14: micro wave 20 LT | F14: ميكروويف 20 لتر | H14: 3350 | I14: 3249.5 | J14: 3819 | K14: 3651.5 | L14: 3819 | M14: H6*1.07 | N14: 3476.965 | O14: 4029.38 | P14: 3411.975 | Q14: 4029.38 | R14: 3346.985 | S14: 4191.855 | T14: 3509.46
A15: Akai ind | B15: china | C15: micro wave | D15: ak-mw-0002 | E15: micro wave 25 LT | F15: ميكروويف 25 لتر | H15: 4050 | I15: 3928.5 | J15: 4617 | K15: 4414.5 | L15: 4617 | M15: H6*1.07 | N15: 4203.495 | O15: 4871.34 | P15: 4124.925 | Q15: 4871.34 | R15: 4046.355 | S15: 5067.765 | T15: 4242.78
A16: Akai ind | B16: china | C16: micro wave | D16: ak-mw-0003 | E16: micro wave 30 LT | F16: ميكروويف 30 لتر | H16: 4400 | I16: 4268 | J16: 5016 | K16: 4796 | L16: 5016 | M16: H6*1.07 | N16: 4566.76 | O16: 5292.32 | P16: 4481.4 | Q16: 5292.32 | R16: 4396.04 | S16: 5505.72 | T16: 4609.44
A17: B.ONE | B17: china | C17: air fryer | D17: ak-af-0001 | E17: air fryer 5.5 n (100) | F17: قلاية 5.5 لتر عادة 100 | H17: 2500 | I17: 2425 | J17: 2850 | K17: 2725 | L17: 2850 | M17: H6*1.07 | N17: 2594.75 | O17: 3007 | P17: 2546.25 | Q17: 3007 | R17: 2497.75 | S17: 3128.25 | T17: 2619
A18: B.ONE | B18: china | C18: air fryer | D18: ak-af-0002 | E18: air fryer 5.5 D (100) | F18: قلاية 5.5 لتر ديجيتال 100 | H18: 2600 | I18: 2522 | J18: 2964 | K18: 2834 | L18: 2964 | M18: H6*1.07 | N18: 2698.54 | O18: 3127.28 | P18: 2648.1 | Q18: 3127.28 | R18: 2597.66 | S18: 3253.38 | T18: 2723.76
A19: B.ONE | B19: china | C19: air fryer | D19: ak-af-0003 | E19: air fryer 5.5 n (200) | F19: قلاية 5.5 لتر عادة 200 | H19: 2550 | I19: 2473.5 | J19: 2907 | K19: 2779.5 | L19: 2907 | M19: H6*1.07 | N19: 2646.645 | O19: 3067.14 | P19: 2597.175 | Q19: 3067.14 | R19: 2547.705 | S19: 3190.815 | T19: 2671.38
A20: B.ONE | B20: china | C20: air fryer | D20: ak-af-0004 | E20: air fryer 5.5 D (200) | F20: قلاية 5.5 لتر ديجيتال 200 | H20: 2800 | I20: 2716 | J20: 3192 | K20: 3052 | L20: 3192 | M20: H6*1.07 | N20: 2906.12 | O20: 3367.84 | P20: 2851.8 | Q20: 3367.84 | R20: 2797.48 | S20: 3503.64 | T20: 2933.28
A21: Akai ind | B21: china | C21: iron | D21: ak-ir-0001 | E21: iron teflon | F21: مكواة تيفال | H21: 3500 | I21: 3395 | J21: 3990 | K21: 3815 | L21: 3990 | M21: H6*1.07 | N21: 3632.65 | O21: 4209.8 | P21: 3564.75 | Q21: 4209.8 | R21: 3496.85 | S21: 4379.55 | T21: 3666.6
A22: Akai ind | B22: china | C22: iron | D22: ak-ir-0002 | E22: iron ceramic | F22: مكواة سيراميك | H22: 3400 | I22: 3298 | J22: 3876 | K22: 3706 | L22: 3876 | M22: H6*1.07 | N22: 3528.86 | O22: 4089.52 | P22: 3462.9 | Q22: 4089.52 | R22: 3396.94 | S22: 4254.42 | T22: 3561.84
A23: Akai ind | B23: china | C23: yogurt | D23: ak-yg-0001 | E23: yogart n | F23: ماكينة زبادى عادة | H23: 4000 | I23: 3880 | J23: 4560 | K23: 4360 | L23: 4560 | M23: H6*1.07 | N23: 4151.6 | O23: 4811.2 | P23: 4074 | Q23: 4811.2 | R23: 3996.4 | S23: 5005.2 | T23: 4190.4
A24: Akai ind | B24: china | C24: kettle | D24: ak-kt-0001 | E24: kettle 1505 | F24: غلاية 1505 بلاستيك | H24: 590 | I24: 572.3 | J24: 672.6 | K24: 643.1 | L24: 672.6 | M24: H6*1.07 | N24: 612.361 | O24: 709.652 | P24: 600.915 | Q24: 709.652 | R24: 589.469 | S24: 738.267 | T24: 618.084
A25: Akai ind | B25: china | C25: kettle | D25: ak-kt-0002 | E25: kettle 1100 | F25: غلاية 1100 زجاج | H25: 620 | I25: 601.4 | J25: 706.8 | K25: 675.8 | L25: 706.8 | M25: H6*1.07 | N25: 643.498 | O25: 745.736 | P25: 631.47 | Q25: 745.736 | R25: 619.442 | S25: 775.806 | T25: 649.512
A26: Akai ind | B26: china | C26: oven | D26: ak-ov-0001 | E26: oven 45 LT | F26: فرن 45 لتر | H26: 325 | I26: 315.25 | J26: 370.5 | K26: 354.25 | L26: 370.5 | M26: H6*1.07 | N26: 337.3175 | O26: 390.91 | P26: 331.0125 | Q26: 390.91 | R26: 324.7075 | S26: 406.6725 | T26: 340.47
A27: Akai ind | B27: china | C27: oven | D27: ak-ov-0002 | E27: oven 55 LT | F27: فرن 55 لتر | H27: 310 | I27: 300.7 | J27: 353.4 | K27: 337.9 | L27: 353.4 | M27: H6*1.07 | N27: 321.749 | O27: 372.868 | P27: 315.735 | Q27: 372.868 | R27: 309.721 | S27: 387.903 | T27: 324.756
A28: Akai ind | B28: china | C28: oven | D28: ak-ov-0003 | E28: oven 70 LT | F28: فرن 70 لتر | H28: 360 | I28: 349.2 | J28: 410.4 | K28: 392.4 | L28: 410.4 | M28: H6*1.07 | N28: 373.644 | O28: 433.008 | P28: 366.66 | Q28: 433.008 | R28: 359.676 | S28: 450.468 | T28: 377.136
A29: B.ONE | B29: china | C29: water dispenser | D29: ak-wd-0001 | E29: water dispenser cab 2 tap | F29: مبرد 3 حنفية حافظة | H29: 1325 | I29: 1285.25 | J29: 1510.5 | K29: 1444.25 | L29: 1510.5 | M29: H6*1.07 | N29: 1375.2175 | O29: 1593.71 | P29: 1349.5125 | Q29: 1593.71 | R29: 1323.8075 | S29: 1657.9725 | T29: 1388.07
A30: B.ONE | B30: china | C30: water dispenser | D30: ak-wd-0002 | E30: water dispenser ref 3 tap | F30: مبرد 3 حنفية ثلاجة | H30: 1500 | I30: 1455 | J30: 1710 | K30: 1635 | L30: 1710 | M30: H6*1.07 | N30: 1556.85 | O30: 1804.2 | P30: 1527.75 | Q30: 1804.2 | R30: 1498.65 | S30: 1876.95 | T30: 1571.4
A31: B.ONE | B31: china | C31: water dispenser | D31: ak-wd-0003 | E31: water dispenser glass 2 tap | F31: مبرد 2 حنفية زجاج | H31: 2300 | I31: 2231 | J31: 2622 | K31: 2507 | L31: 2622 | M31: H6*1.07 | N31: 2387.17 | O31: 2766.44 | P31: 2342.55 | Q31: 2766.44 | R31: 2297.93 | S31: 2877.99 | T31: 2409.48
A32: Akai ind | B32: china | C32: oven | D32: ak-ov-0004 | E32: oven 40 LT 1 knobe | F32: فرن 40 لتر واحد زرار | H32: 3500 | I32: 3395 | J32: 3990 | K32: 3815 | L32: 3990 | M32: H6*1.07 | N32: 3632.65 | O32: 4209.8 | P32: 3564.75 | Q32: 4209.8 | R32: 3496.85 | S32: 4379.55 | T32: 3666.6
A33: AKAI Exp | B33: china | C33: blender | D33: ak-bl-0001 | F33: كيتشن تركي | H33: 3600 | I33: 3492 | J33: 4104 | K33: 3924 | L33: 4104 | M33: H6*1.07 | N33: 3736.44 | O33: 4330.08 | P33: 3666.6 | Q33: 4330.08 | R33: 3596.76 | S33: 4504.68 | T33: 3771.36
A34: Akai ind | B34: china | C34: blender | D34: ak-bl-0002 | F34: خلاط 400 | H34: 3700 | I34: 3589 | J34: 4218 | K34: 4033 | L34: 4218 | M34: H6*1.07 | N34: 3840.23 | O34: 4450.36 | P34: 3768.45 | Q34: 4450.36 | R34: 3696.67 | S34: 4629.81 | T34: 3876.12
A35: Akai ind | B35: china | C35: blender | D35: ak-bl-0003 | F35: مضرب عاده 400 | H35: 850 | I35: 824.5 | J35: 969 | K35: 926.5 | L35: 969 | M35: H6*1.07 | N35: 882.215 | O35: 1022.38 | P35: 865.725 | Q35: 1022.38 | R35: 849.235 | S35: 1063.605 | T35: 890.46
A36: AKAI EXP | B36: china | C36: cooker | D36: ak-co-0001 | F36: بلاطة 1 عين تركي | H36: 3500 | I36: 3395 | J36: 3990 | K36: 3815 | L36: 3990 | M36: H6*1.07 | N36: 3632.65 | O36: 4209.8 | P36: 3564.75 | Q36: 4209.8 | R36: 3496.85 | S36: 4379.55 | T36: 3666.6
A37: AKAI EXP | B37: china | C37: cooker | D37: ak-co-0002 | F37: بلاطة 2 عين تركي | H37: 700 | I37: 679 | J37: 798 | K37: 763 | L37: 798 | M37: H6*1.07 | N37: 726.53 | O37: 841.96 | P37: 712.95 | Q37: 841.96 | R37: 699.37 | S37: 875.91 | T37: 733.32
A38: Akai ind | B38: china | C38: heater | D38: ak-he-0001 | E38: heater 4 tupe 2970 | F38: دفاية 4 شمعة 2970 | H38: 575 | I38: 557.75 | J38: 655.5 | K38: 626.75 | L38: 655.5 | M38: H6*1.07 | N38: 596.7925 | O38: 691.61 | P38: 585.6375 | Q38: 691.61 | R38: 574.4825 | S38: 719.4975 | T38: 602.37
A39: Akai ind | B39: china | C39: heater | D39: ak-he-0002 | E39: heater 3 tupe 2820 | F39: دفاية 3 شمعة 2820 | H39: 450 | I39: 436.5 | J39: 513 | K39: 490.5 | L39: 513 | M39: H6*1.07 | N39: 467.055 | O39: 541.26 | P39: 458.325 | Q39: 541.26 | R39: 449.595 | S39: 563.085 | T39: 471.42
A40: Akai ind | B40: china | C40: heater | D40: ak-he-0003 | E40: heater 4 tupe N | F40: دفاية 4 شمعة عادة | H40: 230 | I40: 223.1 | J40: 262.2 | K40: 250.7 | L40: 262.2 | M40: H6*1.07 | N40: 238.717 | O40: 276.644 | P40: 234.255 | Q40: 276.644 | R40: 229.793 | S40: 287.799 | T40: 240.948
A41: Akai ind | B41: china | C41: heater | D41: ak-he-0004 | E41: heater 4 tupe R | F41: دفاية 4 شمعة ريموت | H41: 480 | I41: 465.6 | J41: 547.2 | K41: 523.2 | L41: 547.2 | M41: H6*1.07 | N41: 498.192 | O41: 577.344 | P41: 488.88 | Q41: 577.344 | R41: 479.568 | S41: 600.624 | T41: 502.848
A42: Akai ind | B42: china | C42: heater | D42: ak-he-0005 | E42: heater 4 tupe 2050 | F42: دفاية 4 شمعة وسط 2050 | H42: 350 | I42: 339.5 | J42: 399 | K42: 381.5 | L42: 399 | M42: H6*1.07 | N42: 363.265 | O42: 420.98 | P42: 356.475 | Q42: 420.98 | R42: 349.685 | S42: 437.955 | T42: 366.66
A43: Akai ind | B43: china | C43: v.cleaner | D43: ak-vc-0001 | E43: v.cleaner 2000 w | F43: مكنسة بطة 2000 وات | H43: 2100 | I43: 2037 | J43: 2394 | K43: 2289 | L43: 2394 | M43: H6*1.07 | N43: 2179.59 | O43: 2525.88 | P43: 2138.85 | Q43: 2525.88 | R43: 2098.11 | S43: 2627.73 | T43: 2199.96
A44: Akai ind | B44: turky | C44: v.cleaner | D44: ak-vc-0002 | E44: v.cleaner tank | F44: مكنسة برميل تركي | H44: 2200 | I44: 2134 | J44: 2508 | K44: 2398 | L44: 2508 | M44: H6*1.07 | N44: 2283.38 | O44: 2646.16 | P44: 2240.7 | Q44: 2646.16 | R44: 2198.02 | S44: 2752.86 | T44: 2304.72
A45: B.ONE | B45: china | C45: b.b.q | D45: ak-bq-0001 | E45: b.b.q 2200 | F45: شواية | H45: 390 | I45: 378.3 | J45: 444.6 | K45: 425.1 | L45: 444.6 | M45: H6*1.07 | N45: 404.781 | O45: 469.092 | P45: 397.215 | Q45: 469.092 | R45: 389.649 | S45: 488.007 | T45: 408.564
A46: Akai ind | B46: china | C46: EXHAUST FAN | D46: ak-ex-0001 | E46: EXHAUST FAN 30 | F46: شفاط 30سم شبكة | H46: 410 | I46: 397.7 | J46: 467.4 | K46: 446.9 | L46: 467.4 | M46: H6*1.07 | N46: 425.539 | O46: 493.148 | P46: 417.585 | Q46: 493.148 | R46: 409.631 | S46: 513.033 | T46: 429.516
A47: Akai ind | B47: china | C47: gas cooker | D47: ak-gc-0006 | E47: gas cooker 3 flame | F47: مسطح 3 عين استانلس | H47: 600 | I47: 582 | J47: 684 | K47: 654 | L47: 684 | M47: H6*1.07 | N47: 622.74 | O47: 721.68 | P47: 611.1 | Q47: 721.68 | R47: 599.46 | S47: 750.78 | T47: 628.56
A48: AKAI EXP | B48: china | C48: chopper | D48: ak-ch-0001 | E48: chopper 500 2 blade | F48: كويكي 2 سكينة 500 | H48: 950 | I48: 921.5 | J48: 1083 | K48: 1035.5 | L48: 1083 | M48: H6*1.07 | N48: 986.005 | O48: 1142.66 | P48: 967.575 | Q48: 1142.66 | R48: 949.145 | S48: 1188.735 | T48: 995.22
A49: AKAI EXP | B49: turky | C49: chopper | D49: ak-ch-0002 | F49: كبة 1 حوض 2 سكينة 100 | H49: 700 | I49: 679 | J49: 798 | K49: 763 | L49: 798 | M49: H6*1.07 | N49: 726.53 | O49: 841.96 | P49: 712.95 | Q49: 841.96 | R49: 699.37 | S49: 875.91 | T49: 733.32
A50: AKAI EXP | B50: turky | C50: chopper | D50: ak-ch-0003 | F50: كبة 2 حوض 2 سكينة 150 | H50: 740 | I50: 717.8 | J50: 843.6 | K50: 806.6 | L50: 843.6 | M50: H6*1.07 | N50: 768.046 | O50: 890.072 | P50: 753.69 | Q50: 890.072 | R50: 739.334 | S50: 925.962 | T50: 775.224
A51: Akai ind | B51: china | C51: Ceiling fan | D51: ak-cf-0001 | F51: مروحة سقف 56" بوصة | I51: 0 | J51: 0 | K51: 0 | L51: 0 | M51: H6*1.07 | N51: 0 | O51: 0 | P51: 0 | Q51: 0 | R51: 0 | S51: 0 | T51: 0
A52: Akai ind | B52: china | C52: fans | D52: ak-fa-0001 | F52: مروحة حائط 18 بوصة عادة | I52: 0 | J52: 0 | K52: 0 | L52: 0 | M52: H6*1.07 | N52: 0 | O52: 0 | P52: 0 | Q52: 0 | R52: 0 | S52: 0 | T52: 0
A53: Akai ind | B53: china | C53: fans | D53: ak-fa-0002 | F53: مروحة حائط 18 بوصة ريموت | I53: 0 | J53: 0 | K53: 0 | L53: 0 | M53: H6*1.07 | N53: 0 | O53: 0 | P53: 0 | Q53: 0 | R53: 0 | S53: 0 | T53: 0
A54: Akai ind | B54: china | C54: fans | D54: ak-fa-0003 | F54: مروحة عمود 18 بوصة عادة | I54: 0 | J54: 0 | K54: 0 | L54: 0 | M54: H6*1.07 | N54: 0 | O54: 0 | P54: 0 | Q54: 0 | R54: 0 | S54: 0 | T54: 0
A55: Akai ind | B55: china | C55: fans | D55: ak-fa-0004 | F55: مروحة عمود 18 بوصة ريموت | I55: 0 | J55: 0 | K55: 0 | L55: 0 | M55: H6*1.07 | N55: 0 | O55: 0 | P55: 0 | Q55: 0 | R55: 0 | S55: 0 | T55: 0
A56: Akai ind | B56: china | C56: fans | D56: ak-fa-0005 | F56: مروحة حائط 20 بوصة عادة | I56: 0 | J56: 0 | K56: 0 | L56: 0 | M56: H6*1.07 | N56: 0 | O56: 0 | P56: 0 | Q56: 0 | R56: 0 | S56: 0 | T56: 0
A57: Akai ind | B57: china | C57: fans | D57: ak-fa-0006 | F57: مروحة عمود 20 بوصة عادة | I57: 0 | J57: 0 | K57: 0 | L57: 0 | M57: H6*1.07 | N57: 0 | O57: 0 | P57: 0 | Q57: 0 | R57: 0 | S57: 0 | T57: 0
A58: Akai ind | B58: china | C58: fans | D58: ak-fa-0007 | F58: مروحة حائط 18 عادة موزة | I58: 0 | J58: 0 | K58: 0 | L58: 0 | M58: H6*1.07 | N58: 0 | O58: 0 | P58: 0 | Q58: 0 | R58: 0 | S58: 0 | T58: 0
A59: Akai ind | B59: china | C59: fans | D59: ak-fa-0008 | F59: مروحة عمود 18 عادة موزة | I59: 0 | J59: 0 | K59: 0 | L59: 0 | M59: H6*1.07 | N59: 0 | O59: 0 | P59: 0 | Q59: 0 | R59: 0 | S59: 0 | T59: 0
A60: Akai ind | B60: china | C60: fans | D60: ak-fa-0009 | F60: مروحة كاريوكا 18 بوصة | I60: 0 | J60: 0 | K60: 0 | L60: 0 | M60: H6*1.07 | N60: 0 | O60: 0 | P60: 0 | Q60: 0 | R60: 0 | S60: 0 | T60: 0
A61: B.ONE | B61: china | C61: killer | D61: ak-kl-0001 | F61: صاعق ناموس بلاستيك 60 سم | I61: 0 | J61: 0 | K61: 0 | L61: 0 | M61: H6*1.07 | N61: 0 | O61: 0 | P61: 0 | Q61: 0 | R61: 0 | S61: 0 | T61: 0
A62: AKAI EXP | B62: egypt | C62: colman | D62: ak-cl-0001 | F62: كولمن 20 لتر | I62: 0 | J62: 0 | K62: 0 | L62: 0 | M62: H6*1.07 | N62: 0 | O62: 0 | P62: 0 | Q62: 0 | R62: 0 | S62: 0 | T62: 0
A63: AKAI EXP | B63: china | C63: air cooler | D63: ak-ac-0001 | F63: تكييف صحراوي 75 لتر | I63: 0 | J63: 0 | K63: 0 | L63: 0 | M63: H6*1.07 | N63: 0 | O63: 0 | P63: 0 | Q63: 0 | R63: 0 | S63: 0 | T63: 0

Sheet 13-1-2024
A1: price list : 13-1-2024 | G1: =TODAY() -> 2024-01-22
I3: قطعي بدون خصم | J3: اجل بخصم 5% | L3: نقدي بخصم 7% | N3: ض اجل بخصم 5% | P3: ض نقدي بخصم 7% | R3: K.A
A4: factory | B4: supp | C4: group | D4: item code | E4: items | F4: items | G4: model | H4: base price | I4: قطعي بدون خصم | J4: سعر البيع | K4: الفاتورة | L4: سعر البيع | M4: الفاتورة | N4: سعر البيع | O4: الفاتورة بدون ض | P4: سعر البيع | Q4: الفاتورة بدون ض | R4: سعر البيع | S4: الفاتورة بدون ض
A5: AKAI Exp | B5: china | C5: t.v | D5: ak-tv-0001 | E5: t.v 32" | F5: شاشة 32 بوصة | H5: 0 | I5: =H5*0.97 -> 0 | J5: =H5*1.14 -> 0 | K5: =H5*1.09 -> 0 | L5: =H5*1.14 -> 0 | M5: H6*1.07 | N5: =I5*1.07 -> 0 | O5: =I5*(1+0.05+0.09+0.1) -> 0 | P5: =I5*(1+0.05) -> 0 | Q5: =I5*(1+0.05+0.09+0.1) -> 0 | R5: =I5*(1+0.03) -> 0 | S5: =I5*(1+0.05+0.14+0.1) -> 0 | T5: =I5*(1+0.03+0.05) -> 0
A6: AKAI Exp | B6: china | C6: t.v | D6: ak-tv-0002 | E6: t.v 43" | F6: شاشة 43 بوصة | H6: 7300 | I6: 7081 | J6: 8322 | K6: 7957 | L6: 8322 | M6: H6*1.07 | N6: 7576.67 | O6: 8780.44 | P6: 7435.05 | Q6: 8780.44 | R6: 7293.43 | S6: 9134.49 | T6: 7647.48
A7: B.ONE | B7: china | C7: washing | D7: ak-wa-0001 | E7: washing machin 10 kg | F7: غسالة 10 كيلو | H7: 3800 | I7: 3686 | J7: 4332 | K7: 4142 | L7: 4332 | M7: H6*1.07 | N7: 3944.02 | O7: 4570.64 | P7: 3870.3 | Q7: 4570.64 | R7: 3796.58 | S7: 4754.94 | T7: 3980.88
A8: AKAI Exp | B8: china | C8: Refrigerator | D8: ak-rf-0001 | E8: Refrigerator 4.5 | F8: ثلاجة مينى بار 4.5 | H8: 6100 | I8: 5917 | J8: 6954 | K8: 6649 | L8: 6954 | M8: H6*1.07 | N8: 6331.19 | O8: 7337.08 | P8: 6212.85 | Q8: 7337.08 | R8: 6094.51 | S8: 7632.93 | T8: 6390.36
A9: AKAI Exp | B9: china | C9: gas cooker | D9: ak-gc-0001 | E9: gas cooker 60*80 (107) | F9: بوتجاز 60*80 (107) | H9: 5300 | I9: 5141 | J9: 6042 | K9: 5777 | L9: 6042 | M9: H6*1.07 | N9: 5500.87 | O9: 6374.84 | P9: 5398.05 | Q9: 6374.84 | R9: 5295.23 | S9: 6631.89 | T9: 5552.28
A10: AKAI Exp | B10: china | C10: gas cooker | D10: ak-gc-0002 | E10: gas cooker 60*80 co (109) | F10: بوتجاز 60*80 نحاس (109) | H10: 5500 | I10: 5335 | J10: 6270 | K10: 5995 | L10: 6270 | M10: H6*1.07 | N10: 5708.45 | O10: 6615.4 | P10: 5601.75 | Q10: 6615.4 | R10: 5495.05 | S10: 6882.15 | T10: 5761.8
A11: AKAI Exp | B11: china | C11: gas cooker | D11: ak-gc-0003 | E11: gas cooker 60*80 & fan (110) | F11: بوتجاز 60*80 بالمروحة (110) | H11: 5700 | I11: 5529 | J11: 6498 | K11: 6213 | L11: 6498 | M11: H6*1.07 | N11: 5916.03 | O11: 6855.96 | P11: 5805.45 | Q11: 6855.96 | R11: 5694.87 | S11: 7132.41 | T11: 5971.32
A12: AKAI Exp | B12: china | C12: gas cooker | D12: ak-gc-0004 | E12: gas cooker 60*80 co (114) | F12: بوتجاز 60*90 نحاس (114) | H12: 6250 | I12: 6062.5 | J12: 7125 | K12: 6812.5 | L12: 7125 | M12: H6*1.07 | N12: 6486.875 | O12: 7517.5 | P12: 6365.625 | Q12: 7517.5 | R12: 6244.375 | S12: 7820.625 | T12: 6547.5
A13: AKAI Exp | B13: china | C13: gas cooker | D13: ak-gc-0005 | E13: gas cooker 60*80 & fan (115) | F13: بوتجاز 60*90 بالمروحة (115) | H13: 6350 | I13: 6159.5 | J13: 7239 | K13: 6921.5 | L13: 7239 | M13: H6*1.07 | N13: 6590.665 | O13: 7637.78 | P13: 6467.475 | Q13: 7637.78 | R13: 6344.285 | S13: 7945.755 | T13: 6652.26
A14: Akai ind | B14: china | C14: micro wave | D14: ak-mw-0001 | E14: micro wave 20 LT | F14: ميكروويف 20 لتر | H14: 3350 | I14: 3249.5 | J14: 3819 | K14: 3651.5 | L14: 3819 | M14: H6*1.07 | N14: 3476.965 | O14: 4029.38 | P14: 3411.975 | Q14: 4029.38 | R14: 3346.985 | S14: 4191.855 | T14: 3509.46
A15: Akai ind | B15: china | C15: micro wave | D15: ak-mw-0002 | E15: micro wave 25 LT | F15: ميكروويف 25 لتر | H15: 4050 | I15: 3928.5 | J15: 4617 | K15: 4414.5 | L15: 4617 | M15: H6*1.07 | N15: 4203.495 | O15: 4871.34 | P15: 4124.925 | Q15: 4871.34 | R15: 4046.355 | S15: 5067.765 | T15: 4242.78
A16: Akai ind | B16: china | C16: micro wave | D16: ak-mw-0003 | E16: micro wave 30 LT | F16: ميكروويف 30 لتر | H16: 4400 | I16: 4268 | J16: 5016 | K16: 4796 | L16: 5016 | M16: H6*1.07 | N16: 4566.76 | O16: 5292.32 | P16: 4481.4 | Q16: 5292.32 | R16: 4396.04 | S16: 5505.72 | T16: 4609.44
A17: B.ONE | B17: china | C17: air fryer | D17: ak-af-0001 | E17: air fryer 5.5 n (100) | F17: قلاية 5.5 لتر عادة 100 | H17: 2500 | I17: 2425 | J17: 2850 | K17: 2725 | L17: 2850 | M17: H6*1.07 | N17: 2594.75 | O17: 3007 | P17: 2546.25 | Q17: 3007 | R17: 2497.75 | S17: 3128.25 | T17: 2619
A18: B.ONE | B18: china | C18: air fryer | D18: ak-af-0002 | E18: air fryer 5.5 D (100) | F18: قلاية 5.5 لتر ديجيتال 100 | H18: 2600 | I18: 2522 | J18: 2964 | K18: 2834 | L18: 2964 | M18: H6*1.07 | N18: 2698.54 | O18: 3127.28 | P18: 2648.1 | Q18: 3127.28 | R18: 2597.66 | S18: 3253.38 | T18: 2723.76
A19: B.ONE | B19: china | C19: air fryer | D19: ak-af-0003 | E19: air fryer 5.5 n (200) | F19: قلاية 5.5 لتر عادة 200 | H19: 2550 | I19: 2473.5 | J19: 2907 | K19: 2779.5 | L19: 2907 | M19: H6*1.07 | N19: 2646.645 | O19: 3067.14 | P19: 2597.175 | Q19: 3067.14 | R19: 2547.705 | S19: 3190.815 | T19: 2671.38
A20: B.ONE | B20: china | C20: air fryer | D20: ak-af-0004 | E20: air fryer 5.5 D (200) | F20: قلاية 5.5 لتر ديجيتال 200 | H20: 2800 | I20: 2716 | J20: 3192 | K20: 3052 | L20: 3192 | M20: H6*1.07 | N20: 2906.12 | O20: 3367.84 | P20: 2851.8 | Q20: 3367.84 | R20: 2797.48 | S20: 3503.64 | T20: 2933.28
A21: Akai ind | B21: china | C21: iron | D21: ak-ir-0001 | E21: iron teflon | F21: مكواة تيفال | H21: 3500 | I21: 3395 | J21: 3990 | K21: 3815 | L21: 3990 | M21: H6*1.07 | N21: 3632.65 | O21: 4209.8 | P21: 3564.75 | Q21: 4209.8 | R21: 3496.85 | S21: 4379.55 | T21: 3666.6
A22: Akai ind | B22: china | C22: iron | D22: ak-ir-0002 | E22: iron ceramic | F22: مكواة سيراميك | H22: 3400 | I22: 3298 | J22: 3876 | K22: 3706 | L22: 3876 | M22: H6*1.07 | N22: 3528.86 | O22: 4089.52 | P22: 3462.9 | Q22: 4089.52 | R22: 3396.94 | S22: 4254.42 | T22: 3561.84
A23: Akai ind | B23: china | C23: yogurt | D23: ak-yg-0001 | E23: yogart n | F23: ماكينة زبادى عادة | H23: 4000 | I23: 3880 | J23: 4560 | K23: 4360 | L23: 4560 | M23: H6*1.07 | N23: 4151.6 | O23: 4811.2 | P23: 4074 | Q23: 4811.2 | R23: 3996.4 | S23: 5005.2 | T23: 4190.4
A24: Akai ind | B24: china | C24: kettle | D24: ak-kt-0001 | E24: kettle 1505 | F24: غلاية 1505 بلاستيك | H24: 590 | I24: 572.3 | J24: 672.6 | K24: 643.1 | L24: 672.6 | M24: H6*1.07 | N24: 612.361 | O24: 709.652 | P24: 600.915 | Q24: 709.652 | R24: 589.469 | S24: 738.267 | T24: 618.084
A25: Akai ind | B25: china | C25: kettle | D25: ak-kt-0002 | E25: kettle 1100 | F25: غلاية 1100 زجاج | H25: 620 | I25: 601.4 | J25: 706.8 | K25: 675.8 | L25: 706.8 | M25: H6*1.07 | N25: 643.498 | O25: 745.736 | P25: 631.47 | Q25: 745.736 | R25: 619.442 | S25: 775.806 | T25: 649.512
A26: Akai ind | B26: china | C26: oven | D26: ak-ov-0001 | E26: oven 45 LT | F26: فرن 45 لتر | H26: 325 | I26: 315.25 | J26: 370.5 | K26: 354.25 | L26: 370.5 | M26: H6*1.07 | N26: 337.3175 | O26: 390.91 | P26: 331.0125 | Q26: 390.91 | R26: 324.7075 | S26: 406.6725 | T26: 340.47
A27: Akai ind | B27: china | C27: oven | D27: ak-ov-0002 | E27: oven 55 LT | F27: فرن 55 لتر | H27: 310 | I27: 300.7 | J27: 353.4 | K27: 337.9 | L27: 353.4 | M27: H6*1.07 | N27: 321.749 | O27: 372.868 | P27: 315.735 | Q27: 372.868 | R27: 309.721 | S27: 387.903 | T27: 324.756
A28: Akai ind | B28: china | C28: oven | D28: ak-ov-0003 | E28: oven 70 LT | F28: فرن 70 لتر | H28: 360 | I28: 349.2 | J28: 410.4 | K28: 392.4 | L28: 410.4 | M28: H6*1.07 | N28: 373.644 | O28: 433.008 | P28: 366.66 | Q28: 433.008 | R28: 359.676 | S28: 450.468 | T28: 377.136
A29: B.ONE | B29: china | C29: water dispenser | D29: ak-wd-0001 | E29: water dispenser cab 2 tap | F29: مبرد 3 حنفية حافظة | H29: 1325 | I29: 1285.25 | J29: 1510.5 | K29: 1444.25 | L29: 1510.5 | M29: H6*1.07 | N29: 1375.2175 | O29: 1593.71 | P29: 1349.5125 | Q29: 1593.71 | R29: 1323.8075 | S29: 1657.9725 | T29: 1388.07
A30: B.ONE | B30: china | C30: water dispenser | D30: ak-wd-0002 | E30: water dispenser ref 3 tap | F30: مبرد 3 حنفية ثلاجة | H30: 1500 | I30: 1455 | J30: 1710 | K30: 1635 | L30: 1710 | M30: H6*1.07 | N30: 1556.85 | O30: 1804.2 | P30: 1527.75 | Q30: 1804.2 | R30: 1498.65 | S30: 1876.95 | T30: 1571.4
A31: B.ONE | B31: china | C31: water dispenser | D31: ak-wd-0003 | E31: water dispenser glass 2 tap | F31: مبرد 2 حنفية زجاج | H31: 2300 | I31: 2231 | J31: 2622 | K31: 2507 | L31: 2622 | M31: H6*1.07 | N31: 2387.17 | O31: 2766.44 | P31: 2342.55 | Q31: 2766.44 | R31: 2297.93 | S31: 2877.99 | T31: 2409.48
A32: Akai ind | B32: china | C32: oven | D32: ak-ov-0004 | E32: oven 40 LT 1 knobe | F32: فرن 40 لتر واحد زرار | H32: 3500 | I32: 3395 | J32: 3990 | K32: 3815 | L32: 3990 | M32: H6*1.07 | N32: 3632.65 | O32: 4209.8 | P32: 3564.75 | Q32: 4209.8 | R32: 3496.85 | S32: 4379.55 | T32: 3666.6
A33: AKAI Exp | B33: china | C33: blender | D33: ak-bl-0001 | F33: كيتشن تركي | H33: 3600 | I33: 3492 | J33: 4104 | K33: 3924 | L33: 4104 | M33: H6*1.07 | N33: 3736.44 | O33: 4330.08 | P33: 3666.6 | Q33: 4330.08 | R33: 3596.76 | S33: 4504.68 | T33: 3771.36
A34: Akai ind | B34: china | C34: blender | D34: ak-bl-0002 | F34: خلاط 400 | H34: 3700 | I34: 3589 | J34: 4218 | K34: 4033 | L34: 4218 | M34: H6*1.07 | N34: 3840.23 | O34: 4450.36 | P34: 3768.45 | Q34: 4450.36 | R34: 3696.67 | S34: 4629.81 | T34: 3876.12
A35: Akai ind | B35: china | C35: blender | D35: ak-bl-0003 | F35: مضرب عاده 400 | H35: 850 | I35: 824.5 | J35: 969 | K35: 926.5 | L35: 969 | M35: H6*1.07 | N35: 882.215 | O35: 1022.38 | P35: 865.725 | Q35: 1022.38 | R35: 849.235 | S35: 1063.605 | T35: 890.46
A36: AKAI EXP | B36: china | C36: cooker | D36: ak-co-0001 | F36: بلاطة 1 عين تركي | H36: 3500 | I36: 3395 | J36: 3990 | K36: 3815 | L36: 3990 | M36: H6*1.07 | N36: 3632.65 | O36: 4209.8 | P36: 3564.75 | Q36: 4209.8 | R36: 3496.85 | S36: 4379.55 | T36: 3666.6
A37: AKAI EXP | B37: china | C37: cooker | D37: ak-co-0002 | F37: بلاطة 2 عين تركي | H37: 700 | I37: 679 | J37: 798 | K37: 763 | L37: 798 | M37: H6*1.07 | N37: 726.53 | O37: 841.96 | P37: 712.95 | Q37: 841.96 | R37: 699.37 | S37: 875.91 | T37: 733.32
A38: Akai ind | B38: china | C38: heater | D38: ak-he-0001 | E38: heater 4 tupe 2970 | F38: دفاية 4 شمعة 2970 | H38: 575 | I38: 557.75 | J38: 655.5 | K38: 626.75 | L38: 655.5 | M38: H6*1.07 | N38: 596.7925 | O38: 691.61 | P38: 585.6375 | Q38: 691.61 | R38: 574.4825 | S38: 719.4975 | T38: 602.37
A39: Akai ind | B39: china | C39: heater | D39: ak-he-0002 | E39: heater 3 tupe 2820 | F39: دفاية 3 شمعة 2820 | H39: 450 | I39: 436.5 | J39: 513 | K39: 490.5 | L39: 513 | M39: H6*1.07 | N39: 467.055 | O39: 541.26 | P39: 458.325 | Q39: 541.26 | R39: 449.595 | S39: 563.085 | T39: 471.42
A40: Akai ind | B40: china | C40: heater | D40: ak-he-0003 | E40: heater 4 tupe N | F40: دفاية 4 شمعة عادة | H40: 230 | I40: 223.1 | J40: 262.2 | K40: 250.7 | L40: 262.2 | M40: H6*1.07 | N40: 238.717 | O40: 276.644 | P40: 234.255 | Q40: 276.644 | R40: 229.793 | S40: 287.799 | T40: 240.948
A41: Akai ind | B41: china | C41: heater | D41: ak-he-0004 | E41: heater 4 tupe R | F41: دفاية 4 شمعة ريموت | H41: 480 | I41: 465.6 | J41: 547.2 | K41: 523.2 | L41: 547.2 | M41: H6*1.07 | N41: 498.192 | O41: 577.344 | P41: 488.88 | Q41: 577.344 | R41: 479.568 | S41: 600.624 | T41: 502.848
A42: Akai ind | B42: china | C42: heater | D42: ak-he-0005 | E42: heater 4 tupe 2050 | F42: دفاية 4 شمعة وسط 2050 | H42: 350 | I42: 339.5 | J42: 399 | K42: 381.5 | L42: 399 | M42: H6*1.07 | N42: 363.265 | O42: 420.98 | P42: 356.475 | Q42: 420.98 | R42: 349.685 | S42: 437.955 | T42: 366.66
A43: Akai ind | B43: china | C43: v.cleaner | D43: ak-vc-0001 | E43: v.cleaner 2000 w | F43: مكنسة بطة 2000 وات | H43: 2100 | I43: 2037 | J43: 2394 | K43: 2289 | L43: 2394 | M43: H6*1.07 | N43: 2179.59 | O43: 2525.88 | P43: 2138.85 | Q43: 2525.88 | R43: 2098.11 | S43: 2627.73 | T43: 2199.96
A44: Akai ind | B44: turky | C44: v.cleaner | D44: ak-vc-0002 | E44: v.cleaner tank | F44: مكنسة برميل تركي | H44: 2200 | I44: 2134 | J44: 2508 | K44: 2398 | L44: 2508 | M44: H6*1.07 | N44: 2283.38 | O44: 2646.16 | P44: 2240.7 | Q44: 2646.16 | R44: 2198.02 | S44: 2752.86 | T44: 2304.72
A45: B.ONE | B45: china | C45: b.b.q | D45: ak-bq-0001 | E45: b.b.q 2200 | F45: شواية | H45: 390 | I45: 378.3 | J45: 444.6 | K45: 425.1 | L45: 444.6 | M45: H6*1.07 | N45: 404.781 | O45: 469.092 | P45: 397.215 | Q45: 469.092 | R45: 389.649 | S45: 488.007 | T45: 408.564
A46: Akai ind | B46: china | C46: EXHAUST FAN | D46: ak-ex-0001 | E46: EXHAUST FAN 30 | F46: شفاط 30سم شبكة | H46: 410 | I46: 397.7 | J46: 467.4 | K46: 446.9 | L46: 467.4 | M46: H6*1.07 | N46: 425.539 | O46: 493.148 | P46: 417.585 | Q46: 493.148 | R46: 409.631 | S46: 513.033 | T46: 429.516
A47: Akai ind | B47: china | C47: gas cooker | D47: ak-gc-0006 | E47: gas cooker 3 flame | F47: مسطح 3 عين استانلس | H47: 600 | I47: 582 | J47: 684 | K47: 654 | L47: 684 | M47: H6*1.07 | N47: 622.74 | O47: 721.68 | P47: 611.1 | Q47: 721.68 | R47: 599.46 | S47: 750.78 | T47: 628.56
A48: AKAI EXP | B48: china | C48: chopper | D48: ak-ch-0001 | E48: chopper 500 2 blade | F48: كويكي 2 سكينة 500 | H48: 950 | I48: 921.5 | J48: 1083 | K48: 1035.5 | L48: 1083 | M48: H6*1.07 | N48: 986.005 | O48: 1142.66 | P48: 967.575 | Q48: 1142.66 | R48: 949.145 | S48: 1188.735 | T48: 995.22
A49: AKAI EXP | B49: turky | C49: chopper | D49: ak-ch-0002 | F49: كبة 1 حوض 2 سكينة 100 | H49: 700 | I49: 679 | J49: 798 | K49: 763 | L49: 798 | M49: H6*1.07 | N49: 726.53 | O49: 841.96 | P49: 712.95 | Q49: 841.96 | R49: 699.37 | S49: 875.91 | T49: 733.32
A50: AKAI EXP | B50: turky | C50: chopper | D50: ak-ch-0003 | F50: كبة 2 حوض 2 سكينة 150 | H50: 740 | I50: 717.8 | J50: 843.6 | K50: 806.6 | L50: 843.6 | M50: H6*1.07 | N50: 768.046 | O50: 890.072 | P50: 753.69 | Q50: 890.072 | R50: 739.334 | S50: 925.962 | T50: 775.224
A51: Akai ind | B51: china | C51: Ceiling fan | D51: ak-cf-0001 | F51: مروحة سقف 56" بوصة | H51: 500 | I51: 485 | J51: 570 | K51: 545 | L51: 570 | M51: H6*1.07 | N51: 518.95 | O51: 601.4 | P51: 509.25 | Q51: 601.4 | R51: 499.55 | S51: 625.65 | T51: 523.8
A52: Akai ind | B52: china | C52: fans | D52: ak-fa-0001 | F52: مروحة حائط 18 بوصة عادة | I52: 0 | J52: 0 | K52: 0 | L52: 0 | M52: H6*1.07 | N52: 0 | O52: 0 | P52: 0 | Q52: 0 | R52: 0 | S52: 0 | T52: 0
A53: Akai ind | B53: china | C53: fans | D53: ak-fa-0002 | F53: مروحة حائط 18 بوصة ريموت | I53: 0 | J53: 0 | K53: 0 | L53: 0 | M53: H6*1.07 | N53: 0 | O53: 0 | P53: 0 | Q53: 0 | R53: 0 | S53: 0 | T53: 0
A54: Akai ind | B54: china | C54: fans | D54: ak-fa-0003 | F54: مروحة عمود 18 بوصة عادة | I54: 0 | J54: 0 | K54: 0 | L54: 0 | M54: H6*1.07 | N54: 0 | O54: 0 | P54: 0 | Q54: 0 | R54: 0 | S54: 0 | T54: 0
A55: Akai ind | B55: china | C55: fans | D55: ak-fa-0004 | F55: مروحة عمود 18 بوصة ريموت | I55: 0 | J55: 0 | K55: 0 | L55: 0 | M55: H6*1.07 | N55: 0 | O55: 0 | P55: 0 | Q55: 0 | R55: 0 | S55: 0 | T55: 0
A56: Akai ind | B56: china | C56: fans | D56: ak-fa-0005 | F56: مروحة حائط 20 بوصة عادة | I56: 0 | J56: 0 | K56: 0 | L56: 0 | M56: H6*1.07 | N56: 0 | O56: 0 | P56: 0 | Q56: 0 | R56: 0 | S56: 0 | T56: 0
A57: Akai ind | B57: china | C57: fans | D57: ak-fa-0006 | F57: مروحة عمود 20 بوصة عادة | I57: 0 | J57: 0 | K57: 0 | L57: 0 | M57: H6*1.07 | N57: 0 | O57: 0 | P57: 0 | Q57: 0 | R57: 0 | S57: 0 | T57: 0
A58: Akai ind | B58: china | C58: fans | D58: ak-fa-0007 | F58: مروحة حائط 18 عادة موزة | I58: 0 | J58: 0 | K58: 0 | L58: 0 | M58: H6*1.07 | N58: 0 | O58: 0 | P58: 0 | Q58: 0 | R58: 0 | S58: 0 | T58: 0
A59: Akai ind | B59: china | C59: fans | D59: ak-fa-0008 | F59: مروحة عمود 18 عادة موزة | I59: 0 | J59: 0 | K59: 0 | L59: 0 | M59: H6*1.07 | N59: 0 | O59: 0 | P59: 0 | Q59: 0 | R59: 0 | S59: 0 | T59: 0
A60: Akai ind | B60: china | C60: fans | D60: ak-fa-0009 | F60: مروحة كاريوكا 18 بوصة | I60: 0 | J60: 0 | K60: 0 | L60: 0 | M60: H6*1.07 | N60: 0 | O60: 0 | P60: 0 | Q60: 0 | R60: 0 | S60: 0 | T60: 0
A61: B.ONE | B61: china | C61: killer | D61: ak-kl-0001 | F61: صاعق ناموس بلاستيك 60 سم | I61: 0 | J61: 0 | K61: 0 | L61: 0 | M61: H6*1.07 | N61: 0 | O61: 0 | P61: 0 | Q61: 0 | R61: 0 | S61: 0 | T61: 0
A62: AKAI EXP | B62: egypt | C62: colman | D62: ak-cl-0001 | F62: كولمن 20 لتر | I62: 0 | J62: 0 | K62: 0 | L62: 0 | M62: H6*1.07 | N62: 0 | O62: 0 | P62: 0 | Q62: 0 | R62: 0 | S62: 0 | T62: 0
A63: AKAI EXP | B63: china | C63: air cooler | D63: ak-ac-0001 | F63: تكييف صحراوي 75 لتر | I63: 0 | J63: 0 | K63: 0 | L63: 0 | M63: H6*1.07 | N63: 0 | O63: 0 | P63: 0 | Q63: 0 | R63: 0 | S63: 0 | T63: 0
